bitfinex-derivatives/quotes_SOLF0:USTF0_20250909
["timestamp","ask_amount","ask_price","bid_price","bid_amount"]
[1757419696320,7.13,217.55,217.48,0.03051255]
[1757419699619,3.56607389,217.54,217.48,0.03051255]
[1757419699819,7.11,217.52,217.48,0.03051255]
[1757419700021,73.80607389,217.53,217.48,0.03051255]
[1757419700022,7.11,217.5,217.48,0.03051255]
[1757419700228,14.14169529,217.49,217.48,0.03051255]
[1757419701827,14.1432964,217.49,217.48,0.03051255]
[1757419703528,7.0332964,217.49,217.48,0.03051255]
[1757419704524,3.56607389,217.49,217.48,0.03051255]
[1757419706729,7.11,217.57,217.48,7.14051255]
[1757419706924,10.57580332,217.56,217.54,1.93603797]
[1757419707124,3.46580332,217.55,217.54,1.93603797]
[1757419707324,10.57580332,217.55,217.54,1.93603797]
[1757419708228,7.11,217.55,217.54,1.93603797]
[1757419710028,7.11,217.61,217.53,0.03211544]
[1757419710335,7.11,217.59,217.53,1.96815341]
[1757419710535,3.46473451,217.58,217.53,1.96815341]
[1757419710735,7.11,217.56,217.53,1.96815341]
[1757419711037,7.11,217.61,217.53,1.96815341]
[1757419711334,7.11,217.59,217.53,1.96815341]
[1757419711530,311.21603797,217.62,217.53,1.96815341]
[1757419711531,3.46468572,217.58,217.53,1.96815341]
[1757419711729,7.11,217.56,217.53,1.96815341]
[1757419711924,7.11,217.61,217.53,1.96815341]
[1757419712124,7.11,217.59,217.53,1.96815341]
[1757419712328,3.45652793,217.58,217.53,1.96815341]
[1757419712528,7.11,217.56,217.53,1.96815341]
[1757419712732,7.11,217.61,217.53,1.96815341]
[1757419712935,7.11,217.59,217.53,1.96815341]
[1757419713135,7.11,217.57,217.53,1.96815341]
[1757419713335,7.11,217.55,217.53,1.96815341]
[1757419714230,9.04603797,217.61,217.53,0.03211544]
[1757419714431,7.11,217.59,217.53,0.03211544]
[1757419714635,3.4572514,217.6,217.53,0.03211544]
[1757419714636,3.4572514,217.58,217.53,0.03211544]
[1757419714835,3.4572514,217.57,217.53,0.03211544]
[1757419715038,7.11,217.55,217.53,0.03211544]
[1757419716235,7.11,217.55,217.54,1.93603797]
[1757419717128,116.12,217.6,217.54,1.93603797]
[1757419717335,7.11,217.58,217.54,1.93603797]
[1757419717530,3.45955204,217.57,217.55,7.11]
[1757419717731,432.49,217.62,217.56,1.93603797]
[1757419717927,3.45959291,217.61,217.56,9.04603797]
[1757419718132,7.11,217.59,217.53,7.14211544]
[1757419718332,3.45959291,217.58,217.56,1.93603797]
[1757419719538,3.45959291,217.57,217.56,1.93603797]
[1757419719738,10.56959291,217.59,217.56,1.93603797]
[1757419720038,3.45959291,217.58,217.56,1.93603797]
[1757419720436,3.45959291,217.58,217.56,9.04603797]
[1757419723341,3.45959291,217.58,217.57,7.11]
[1757419724133,7.17,217.6,217.57,7.11]
[1757419724134,3.45959291,217.59,217.57,7.11]
[1757419724340,3.45959291,217.58,217.57,7.11]
[1757419724536,425.38,217.62,217.53,0.03211544]
[1757419724537,3.45959291,217.59,217.53,4.16911544]
[1757419724742,3.45959291,217.58,217.54,7.47]
[1757419724942,116.1,217.62,217.54,7.47]
[1757419725140,3.46211467,217.61,217.54,7.47]
[1757419725339,3.46211467,217.6,217.54,7.47]
[1757419725541,3.46211467,217.59,217.53,0.03211544]
[1757419725741,3.46211467,217.58,217.54,7.47]
[1757419725942,7.17,217.61,217.58,1.93603797]
[1757419726142,3.46171638,217.6,217.58,1.93603797]
[1757419726342,3.46171638,217.59,217.58,1.93603797]
[1757419726744,3.46171638,217.6,217.58,9.40603797]
[1757419726948,3.46228886,217.59,217.58,9.40603797]
[1757419730848,7.17,217.64,217.58,9.40603797]
[1757419731045,7.17,217.62,217.6,1.93603797]
[1757419731243,3.46542591,217.61,217.6,1.93603797]
[1757419732351,3.46542591,217.61,217.6,9.40603797]
[1757419732646,3.46542591,217.61,217.6,1.93603797]
[1757419733443,65.74,217.65,217.6,1.93603797]
[1757419733444,7.17,217.63,217.6,9.40603797]
[1757419733646,3.46542591,217.62,217.6,9.40603797]
[1757419735644,3.46542591,217.62,217.6,1.93603797]
[1757419735850,7.17,217.64,217.61,7.47]
[1757419736039,3.46701851,217.63,217.61,7.47]
[1757419736243,3.46701851,217.62,217.61,7.47]
[1757419736444,3.46701851,217.62,217.61,9.40603797]
[1757419737251,3.46701851,217.62,217.6,1.93603797]
[1757419737452,3.46701851,217.61,217.6,9.40603797]
[1757419737645,3.46701851,217.61,217.58,7.47]
[1757419737837,7.17,217.69,217.6,7.47]
[1757419738040,9.10603797,217.67,217.57,0.03227232]
[1757419738239,1.93603797,217.63,217.56,9.40603797]
[1757419738442,7.17,217.61,217.6,0.03464774]
[1757419738640,10.63582301,217.61,217.6,0.03464774]
[1757419741951,11.09582301,217.61,217.6,0.03464774]
[1757419742149,13.03186098,217.61,217.6,0.03464774]
[1757419743549,11.09582301,217.61,217.6,0.03464774]
[1757419744654,11.09157226,217.61,217.6,0.03464774]
[1757419746452,10.63157226,217.61,217.6,0.03464774]
[1757419746652,3.46157226,217.61,217.6,0.03464774]
[1757419746852,10.63157226,217.61,217.6,0.03464774]
[1757419748160,3.46157226,217.61,217.6,1.97068571]
[1757419748352,10.63157226,217.61,217.6,1.97068571]
[1757419748749,3.46157226,217.61,217.6,1.97068571]
[1757419750358,3.46157226,217.61,217.6,0.03464774]
[1757419750559,3.46157226,217.61,217.6,1.97068571]
[1757419753058,10.63157226,217.61,217.6,1.97068571]
[1757419753562,3.46157226,217.61,217.6,1.97068571]
[1757419754961,11.12157226,217.61,217.6,1.97068571]
[1757419758667,3.46157226,217.61,217.6,1.97068571]
[1757419759664,3.46157226,217.61,217.6,0.03464774]
[1757419759863,11.12157226,217.61,217.6,1.97068571]
[1757419760666,11.12157226,217.61,217.6,0.03464774]
[1757419760865,11.12157226,217.61,217.6,1.97068571]
[1757419762870,7.66,217.61,217.6,1.97068571]
[1757419764075,5.15532282,217.66,217.6,1.97068571]
[1757419764569,7.66,217.64,217.6,1.97068571]
[1757419764773,7.66,217.64,217.6,0.03464774]
[1757419765174,5.15532282,217.65,217.6,0.03464774]
[1757419765473,7.66,217.64,217.6,0.03464774]
[1757419765673,5.15532282,217.65,217.6,0.03464774]
[1757419765876,7.66,217.64,217.6,0.03464774]
[1757419766178,5.15532282,217.65,217.6,0.03464774]
[1757419766369,7.66,217.64,217.6,0.03464774]
[1757419766564,7.72789474,217.69,217.6,0.03464774]
[1757419766565,5.15532282,217.66,217.6,7.75464774]
[1757419766770,7.66,217.65,217.6,7.75464774]
[1757419767174,5.15532282,217.66,217.6,7.75464774]
[1757419767375,7.66,217.65,217.6,7.75464774]
[1757419768372,5.15532282,217.66,217.6,7.75464774]
[1757419768573,7.66,217.65,217.6,0.03464774]
[1757419768780,12.81532282,217.65,217.6,0.03464774]
[1757419768983,7.66,217.63,217.6,0.03464774]
[1757419769379,12.81532282,217.63,217.6,0.03464774]
[1757419769779,10.74976172,217.66,217.6,0.03464774]
[1757419769780,7.66,217.61,217.6,0.03464774]
[1757419770079,123.34,217.61,217.6,0.03464774]
[1757419774593,7.66,217.61,217.6,0.03464774]
[1757419774793,123.32,217.61,217.6,0.03464774]
[1757419776388,7.66,217.61,217.6,0.03464774]
[1757419776689,123.3,217.61,217.6,0.03464774]
[1757419778197,7.66,217.63,217.6,0.03464774]
[1757419778401,123.28,217.62,217.6,0.03464774]
[1757419778703,7.66,217.61,217.6,0.03464774]
[1757419778996,123.28,217.61,217.6,0.03464774]
[1757419780892,0.02920834,217.64,217.6,3.05651472]
[1757419781086,0.02920834,217.64,217.6,0.03464774]
[1757419781292,0.02920834,217.64,217.61,7.72]
[1757419782292,0.02920834,217.64,217.6,0.03464774]
[1757419782499,0.02920834,217.64,217.61,7.72]
[1757419782899,0.02920834,217.64,217.6,0.03464774]
[1757419783299,0.02920834,217.64,217.61,7.72]
[1757419783493,0.02920834,217.64,217.61,7.48]
[1757419783897,0.02920834,217.64,217.6,0.03464774]
[1757419784100,0.02920834,217.64,217.61,7.48]
[1757419784299,0.02920834,217.64,217.6,0.03464774]
[1757419784897,0.02920834,217.64,217.61,7.48]
[1757419785595,0.02920834,217.64,217.6,0.03464774]
[1757419786203,0.02920834,217.64,217.61,7.48]
[1757419786400,0.02920834,217.64,217.6,0.03464774]
[1757419787204,0.02920834,217.64,217.61,7.48]
[1757419787706,0.02920834,217.64,217.6,0.03464774]
[1757419788708,0.02920834,217.64,217.61,7.48]
[1757419789807,0.02920834,217.64,217.6,3.05651472]
[1757419790108,0.02920834,217.64,217.61,7.48]
[1757419790303,7.24,217.63,217.6,0.03464774]
[1757419790504,7.24,217.63,217.61,7.48]
[1757419790704,0.02920834,217.64,217.6,0.03464774]
[1757419791906,0.02920834,217.64,217.61,7.48]
[1757419792101,0.02920834,217.64,217.6,3.05651472]
[1757419792908,0.02920834,217.64,217.61,7.48]
[1757419793110,0.02920834,217.64,217.6,3.05651472]
[1757419793706,0.02920834,217.64,217.61,7.48]
[1757419794312,0.02920834,217.64,217.63,10.50186698]
[1757419794508,170.0515883,217.72,217.63,3.02186698]
[1757419794715,170.0515883,217.72,217.64,7.48]
[1757419795813,170.0515883,217.72,217.66,0.03355006]
[1757419798315,170.0515883,217.72,217.67,7.48]
[1757419798517,170.0515883,217.72,217.66,3.05541704]
[1757419798813,170.0515883,217.72,217.66,10.53541704]
[1757419799015,170.0515883,217.72,217.66,7.51355006]
[1757419799214,170.0515883,217.72,217.66,0.03355006]
[1757419800620,170.0515883,217.72,217.66,7.51355006]
[1757419800820,162.8115883,217.72,217.67,7.48]
[1757419801023,115.4,217.74,217.67,7.48]
[1757419801321,7.24,217.73,217.66,3.05541704]
[1757419801614,7.24,217.73,217.66,0.03355006]
[1757419802022,7.24,217.73,217.66,7.51355006]
[1757419802224,7.24,217.73,217.66,10.53541704]
[1757419803825,7.24,217.73,217.67,7.48]
[1757419805620,7.24,217.73,217.67,11.6143]
[1757419806025,7.24,217.79,217.7,7.48]
[1757419806228,115.36,217.78,217.7,7.48]
[1757419806421,7.24,217.77,217.7,7.48]
[1757419806624,7.24,217.77,217.72,0.0328475]
[1757419806925,122.6,217.78,217.72,0.0328475]
[1757419807326,7.24,217.78,217.72,3.05471448]
[1757419809230,7.24,217.78,217.72,0.0328475]
[1757419809424,7.24,217.78,217.72,3.05471448]
[1757419809821,115.36,217.79,217.73,7.48]
[1757419811927,115.36,217.79,217.73,10.50186698]
[1757419812930,115.36,217.79,217.74,3.02186698]
[1757419813231,7.24,217.77,217.74,7.48]
[1757419813431,7.24,217.77,217.74,7.05]
[1757419813637,115.36,217.79,217.73,10.07186698]
[1757419814031,115.36,217.79,217.74,3.02186698]
[1757419814234,7.25,217.78,217.75,7.05]
[1757419814536,115.36,217.79,217.74,3.02186698]
[1757419814737,115.36,217.79,217.75,7.05]
[1757419815037,122.61,217.79,217.75,7.05]
[1757419815335,115.36,217.79,217.75,7.05]
[1757419815731,115.36,217.79,217.74,3.02186698]
[1757419815932,7.25,217.82,217.74,10.07186698]
[1757419816831,7.25,217.82,217.75,3.02186698]
[1757419817038,7.25,217.82,217.76,7.05]
[1757419817433,7.25,217.82,217.78,3.02186698]
[1757419817934,7.25,217.84,217.79,7.05]
[1757419818135,7.25,217.84,217.78,3.02186698]
[1757419818330,7.25,217.84,217.79,7.05]
[1757419818529,7.25,217.84,217.78,3.02186698]
[1757419818731,7.25,217.84,217.79,7.05]
[1757419818932,7.25,217.84,217.78,10.07186698]
[1757419820539,7.25,217.84,217.78,3.02186698]
[1757419820839,122.49,217.87,217.81,10.07186698]
[1757419821431,3.02186698,217.96,217.81,3.02186698]
[1757419821632,7.25,217.9,217.82,7.0806104]
[1757419821838,122.45,217.9,217.82,7.0806104]
[1757419822038,122.45,217.9,217.82,7.05]
[1757419822237,122.45,217.9,217.84,0.03480821]
[1757419826445,7.25,217.89,217.85,1.92934815]
[1757419826641,115.2,217.9,217.85,1.92934815]
[1757419826838,7.25,217.89,217.85,1.92934815]
[1757419827042,115.2,217.9,217.85,1.92934815]
[1757419827751,7.25,217.9,217.85,8.97934815]
[1757419827948,115.14,217.91,217.85,8.97934815]
[1757419828241,7.25,217.9,217.85,8.97934815]
[1757419828441,7.25,217.9,217.85,1.92934815]
[1757419828837,7.25,217.9,217.84,0.03480821]
[1757419831343,117.06934815,217.91,217.85,1.92934815]
[1757419831344,115.14,217.91,217.85,1.92934815]
[1757419831549,7.25,217.9,217.85,1.92934815]
[1757419832145,115.14,217.91,217.85,1.92934815]
[1757419832750,7.25,217.9,217.84,1.96415636]
[1757419834347,115.08,217.91,217.86,8.97934815]
[1757419834554,7.25,217.9,217.86,8.97934815]
[1757419834945,115.08,217.91,217.87,1.92934815]
[1757419835148,7.25,217.9,217.87,1.92934815]
[1757419835346,115.08,217.91,217.86,7.05]
[1757419835541,7.25,217.9,217.86,7.05]
[1757419835747,7.25,217.9,217.87,1.92934815]
[1757419835945,7.25,217.9,217.87,8.97934815]
[1757419836546,7.25,217.99,217.88,7.05]
[1757419836953,7.25,217.99,217.92,1.92934815]
[1757419837751,100.06934815,218.0,217.91,0.03435272]
[1757419837752,7.25,217.95,217.91,0.03435272]
[1757419837949,107.36,217.94,217.91,0.03435272]
[1757419838147,9.17934815,217.93,217.84,1.92934815]
[1757419838346,7.25,217.9,217.82,1.92934815]
[1757419838551,7.25,217.9,217.84,1.92934815]
[1757419839451,114.84934815,217.92,217.85,0.02916688]
[1757419839650,7.25,217.91,217.85,0.02916688]
[1757419841852,7.25,217.91,217.87,7.05]
[1757419842041,7.25,217.91,217.88,8.97934815]
[1757419842449,7.25,217.92,217.86,1.92934815]
[1757419843246,7.25,217.92,217.9,1.92934815]
[1757419843447,7.47,217.95,217.9,1.92934815]
[1757419843645,115.0,217.96,217.9,1.92934815]
[1757419843852,115.0,217.96,217.85,0.02916688]
[1757419843853,9.39934815,217.95,217.75,7.06]
[1757419844056,7.47,217.92,217.85,1.92934815]
[1757419847957,7.47,217.92,217.86,1.92934815]
[1757419848358,7.47,217.92,217.85,1.92934815]
[1757419849059,7.47,217.92,217.86,0.02943]
[1757419849255,114.96,217.95,217.87,1.92934815]
[1757419849460,7.47,217.94,217.87,1.92934815]
[1757419849960,7.47,217.94,217.86,7.08943]
[1757419850162,7.47,217.94,217.88,1.92934815]
[1757419850761,7.47,217.94,217.87,1.92934815]
[1757419851456,7.47,217.94,217.89,1.92934815]
[1757419851656,7.47,217.95,217.89,1.92934815]
[1757419851857,7.47,217.95,217.88,1.92934815]
[1757419852963,9.39934815,217.95,217.86,7.08943]
[1757419853159,7.47,217.92,217.86,0.02943]
[1757419853555,12.14,217.96,217.87,1.92934815]
[1757419853756,9.39934815,217.95,217.87,1.92934815]
[1757419857459,7.47,217.95,217.87,1.92934815]
[1757419857664,7.47,217.95,217.89,1.92934815]
[1757419858557,41.66934815,217.98,217.9,1.92934815]
[1757419858558,7.47,217.97,217.9,1.92934815]
[1757419859064,7.47,217.97,217.86,7.08943]
[1757419859065,7.47,217.95,217.88,1.92934815]
[1757419859262,7.47,217.95,217.91,0.02909439]
[1757419859763,1.92934815,217.96,217.91,0.02909439]
[1757419860365,7.47,217.95,217.91,0.02909439]
[1757419861158,1.92934815,217.96,217.91,0.02909439]
[1757419861356,7.47,217.95,217.91,0.02909439]
[1757419861957,1.92934815,217.96,217.91,0.02909439]
[1757419862162,7.47,217.95,217.91,0.02909439]
[1757419862558,9.39934815,217.92,217.91,0.02909439]
[1757419863062,7.47,217.92,217.91,0.02909439]
[1757419863259,7.47,217.92,217.83,1.92934815]
[1757419863260,9.39934815,217.92,217.83,1.92934815]
[1757419863960,9.39934815,217.92,217.83,8.98934815]
[1757419865157,7.47,217.92,217.85,1.92934815]
[1757419866356,1.92934815,217.91,217.83,7.06]
[1757419866563,7.47,217.9,217.83,8.98934815]
[1757419867063,0.03365619,217.89,217.83,8.98934815]
[1757419869258,0.03365619,217.89,217.87,1.92934815]
[1757419869463,0.03365619,217.89,217.88,7.06]
[1757419869663,5.15532282,217.93,217.88,7.06]
[1757419869859,0.03292562,217.91,217.88,7.06]
[1757419870065,7.50292562,217.91,217.88,7.06]
[1757419870258,7.50292562,217.91,217.75,44.77313076]
[1757419870259,7.47,217.9,217.83,7.06]
[1757419870563,7.47,217.9,217.83,8.98934815]
[1757419871062,0.03106755,217.89,217.83,8.98934815]
[1757419874264,0.03106755,217.89,217.85,1.92934815]
[1757419874463,7.21106755,217.89,217.86,7.57]
[1757419874658,7.18,217.89,217.86,7.57]
[1757419876566,0.03342512,217.9,217.84,1.92934815]
[1757419876768,0.03342512,217.9,217.85,7.57]
[1757419876964,0.03342512,217.9,217.84,9.49934815]
[1757419878169,0.03342512,217.9,217.83,7.57]
[1757419878370,0.03342512,217.9,217.87,7.57]
[1757419878573,0.03342512,217.9,217.86,1.92934815]
[1757419878865,0.03342512,217.9,217.87,7.57]
[1757419879069,0.03342512,217.9,217.84,4.131]
[1757419879070,0.03342512,217.9,217.88,9.49934815]
[1757419879565,0.03342512,217.9,217.89,7.57]
[1757419881272,7.18,217.98,217.89,7.57]
[1757419881465,5.15532282,218.0,217.94,1.92934815]
[1757419881874,7.18,218.0,217.94,1.92934815]
[1757419882168,12.33532282,218.0,217.92,7.57]
[1757419882363,7.18,218.0,217.93,1.92934815]
[1757419882762,7.18,218.0,217.94,0.03273796]
[1757419885069,7.18,218.0,217.94,1.96208611]
[1757419885870,7.18,218.0,217.94,0.03273796]
[1757419887877,5.15532282,217.99,217.94,0.03273796]
[1757419888178,7.18,217.98,217.94,0.03273796]
[1757419888580,5.15532282,217.99,217.94,0.03273796]
[1757419888877,7.18,217.98,217.94,0.03273796]
[1757419889379,5.15532282,217.99,217.94,0.03273796]
[1757419889574,7.18,217.98,217.94,0.03273796]
[1757419889881,7.18,217.97,217.94,0.03273796]
[1757419890078,5.15532282,217.98,217.94,0.03273796]
[1757419890482,7.18,217.97,217.94,0.03273796]
[1757419891180,12.33532282,217.97,217.94,0.03273796]
[1757419891481,7.18,217.97,217.94,0.03273796]
[1757419891676,7.18,217.97,217.94,7.60273796]
[1757419892075,7.18,217.98,217.94,7.60273796]
[1757419892275,5.15532282,217.99,217.94,7.60273796]
[1757419892478,7.18,217.98,217.94,7.60273796]
[1757419893746,119.83532282,218.0,217.94,0.03273796]
[1757419893747,7.18,217.99,217.94,0.03273796]
[1757419894082,119.83532282,218.0,217.94,0.03273796]
[1757419894269,7.18,217.99,217.94,0.03273796]
[1757419895883,7.18,217.97,217.94,0.03273796]
[1757419897881,121.84,217.98,217.95,7.57]
[1757419898477,121.84,217.98,217.94,0.03273796]
[1757419899184,121.84,217.98,217.94,7.60273796]
[1757419899579,7.18,217.97,217.94,7.60273796]
[1757419902086,114.62,217.98,217.95,7.57]
[1757419902678,7.18,218.0,217.94,0.03273796]
[1757419902880,5.15532282,218.02,217.94,7.60273796]
[1757419903087,114.6,218.01,217.94,7.60273796]
[1757419904889,7.67,218.0,217.94,0.03273796]
[1757419908988,7.67,218.0,217.94,7.11273796]
[1757419909691,114.6,218.01,217.94,7.11273796]
[1757419910587,7.67,218.0,217.94,7.11273796]
[1757419911687,7.67,218.0,217.94,0.03273796]
[1757419918799,114.5,217.99,217.94,0.03273796]
[1757419919101,7.67,217.98,217.94,7.11273796]
[1757419919295,119.65532282,218.03,217.95,7.08]
[1757419919497,114.5,218.03,217.95,7.08]
[1757419919698,119.65532282,218.03,217.95,7.08]
[1757419919900,12.82532282,218.04,217.95,10.09242414]
[1757419920301,5.15532282,218.04,217.95,7.14142414]
[1757419920498,154.76698199,218.07,217.99,7.08]
[1757419920896,5.15532282,218.08,218.02,7.08]
[1757419921098,5.15532282,218.11,218.02,7.08]
[1757419921301,7.67,218.09,218.01,0.03167573]
[1757419921702,7.67,218.06,218.01,0.03167573]
[1757419921894,7.67,218.04,218.01,0.03167573]
[1757419922405,114.48,218.05,218.01,0.03167573]
[1757419922607,7.67,218.04,218.01,0.03167573]
[1757419923003,5.15532282,218.02,218.01,0.03167573]
[1757419923301,7.67,218.02,218.01,0.03167573]
[1757419925202,12.82532282,218.02,218.01,0.03167573]
[1757419925910,7.67,218.02,218.01,0.03167573]
[1757419927304,8.13,218.02,217.92,7.08]
[1757419927503,7.67,217.98,217.92,7.08]
[1757419927705,7.67,217.96,217.92,7.08]
[1757419928704,7.70178083,217.96,217.92,7.08]
[1757419928905,7.70178083,217.96,217.87,7.08]
[1757419929509,0.03178083,217.96,217.87,7.08]
[1757419930509,0.03178083,217.96,217.9,7.08]
[1757419930813,114.44,217.98,217.9,7.08]
[1757419931305,0.03338183,217.95,217.9,7.08]
[1757419933113,0.03338183,217.95,217.91,3.01242414]
[1757419933713,0.03338183,217.95,217.92,7.49]
[1757419934911,0.03338183,217.95,217.91,3.01242414]
[1757419935410,0.03338183,217.95,217.92,7.49]
[1757419935812,0.03338183,217.95,217.91,7.14202414]
[1757419936006,0.03338183,217.95,217.92,11.6194]
[1757419936215,0.03338183,217.95,217.93,7.49]
[1757419936906,0.03338183,217.95,217.92,4.1294]
[1757419937106,0.03338183,217.95,217.91,7.49]
[1757419937316,0.03338183,217.95,217.9,7.14232414]
[1757419937506,0.03338183,217.95,217.91,7.49]
[1757419938210,0.03338183,217.95,217.91,11.6196]
[1757419938419,5.14924682,218.06,217.94,3.01242414]
[1757419938619,32.35924682,218.07,217.95,7.49]
[1757419938814,27.21,218.07,217.95,7.49]
[1757419939413,32.35924682,218.07,217.95,7.49]
[1757419939619,27.21,218.07,217.99,0.03130443]
[1757419940220,7.33,218.07,217.99,7.52130443]
[1757419940428,121.73,218.07,217.99,7.52130443]
[1757419943325,114.38,218.06,217.99,7.52130443]
[1757419944928,7.33,218.07,217.99,7.52130443]
[1757419945325,24.6,218.08,218.0,7.49]
[1757419945921,24.6,218.08,218.02,0.03518793]
[1757419946129,7.33,218.08,218.02,0.03518793]
[1757419949032,9.25623212,218.08,218.02,0.03518793]
[1757419951835,7.33,218.08,218.02,0.03518793]
[1757419952136,9.25623212,218.08,218.02,0.03518793]
[1757419953731,1.92623212,218.04,218.02,0.03518793]
[1757419954035,7.33,218.03,218.02,0.03518793]
[1757419959839,52.37,218.03,218.02,0.03518793]
[1757419960745,7.33,218.03,218.02,0.03518793]
[1757419963345,9.25623212,218.03,218.02,0.03518793]
[1757419963541,9.25623212,218.03,217.92,7.18]
[1757419963742,9.19623212,217.99,217.92,7.18]
[1757419964644,7.27,217.99,217.92,7.18]
[1757419964947,0.0292524,217.98,217.92,7.18]
[1757419965347,0.0292524,217.98,217.92,9.10623212]
[1757419967842,0.0292524,217.98,217.92,1.92623212]
[1757419968047,0.0292524,217.98,217.93,7.18]
[1757419968446,0.0292524,217.98,217.92,1.92623212]
[1757419969151,0.0292524,217.98,217.93,7.18]
[1757419969343,0.0292524,217.98,217.92,1.92623212]
[1757419969547,0.0292524,217.98,217.93,7.18]
[1757419969742,0.0292524,217.98,217.92,1.92623212]
[1757419969948,0.0292524,217.98,217.97,7.18]
[1757419971749,0.0292524,217.98,217.97,9.10623212]
[1757419972044,0.0292524,217.98,217.97,7.18]
[1757419979251,0.0292524,217.98,217.96,7.18]
[1757419979657,0.0292524,217.98,217.95,1.92623212]
[1757419980659,0.0292524,217.98,217.96,7.18]
[1757419980960,0.0292524,217.98,217.93,4.1293]
[1757419980961,7.2992524,217.98,217.94,7.18]
[1757419981158,7.2992524,217.98,217.93,1.92623212]
[1757419981352,0.0292524,217.98,217.94,7.18]
[1757419981552,0.0292524,217.98,217.93,1.92623212]
[1757419981953,0.0292524,217.98,217.94,7.18]
[1757419982353,0.0292524,217.98,217.93,1.92623212]
[1757419982554,0.0292524,217.98,217.94,7.18]
[1757419982754,0.0292524,217.98,217.87,7.18]
[1757419982955,0.0292524,217.98,217.94,7.18]
[1757419983250,7.2992524,217.98,217.94,7.18]
[1757419983653,0.0292524,217.98,217.94,7.18]
[1757419983855,0.0292524,217.98,217.97,9.10623212]
[1757419987564,1.92623212,218.08,217.99,7.18]
[1757419987763,1.92623212,218.09,218.01,7.18]
[1757419988460,7.27,218.1,218.02,1.92623212]
[1757419989265,7.27,218.1,218.04,0.02986049]
[1757419989661,9.19623212,218.1,218.04,0.02986049]
[1757419991466,5.14924682,218.12,218.06,1.92623212]
[1757419991769,5.14924682,218.12,218.04,0.02986049]
[1757419991770,7.27,218.14,218.08,1.92623212]
[1757419991955,1.92623212,218.13,218.07,7.18]
[1757419992156,7.27,218.12,218.03,9.10623212]
[1757419992362,1.92623212,218.13,218.08,0.03016065]
[1757419992663,7.27,218.12,218.08,0.03016065]
[1757419992860,9.19623212,218.12,218.08,0.03016065]
[1757419993068,1.92623212,218.12,218.08,0.03016065]
[1757419993664,7.07,218.11,218.08,0.03016065]
[1757419993864,1.92623212,218.12,218.08,0.03016065]
[1757419995067,7.07,218.11,218.08,0.03016065]
[1757419995570,1.92623212,218.12,218.08,0.03016065]
[1757419995871,7.07,218.11,218.08,0.03016065]
[1757419996472,1.92623212,218.12,218.08,0.03016065]
[1757419996772,7.07,218.11,218.08,0.03016065]
[1757419996969,1.92623212,218.12,218.08,0.03016065]
[1757419997164,7.07,218.11,218.08,0.03016065]
[1757419997365,1.92623212,218.12,218.08,0.03016065]
[1757419997773,7.07,218.11,218.08,0.03016065]
[1757420001073,1.92623212,218.12,218.08,0.03016065]
[1757420001369,7.07,218.11,218.08,0.03016065]
[1757420002671,1.92623212,218.12,218.08,0.03016065]
[1757420002866,7.07,218.11,218.08,0.03016065]
[1757420003270,1.92623212,218.12,218.08,0.03016065]
[1757420003573,5.14924682,218.16,218.08,0.03016065]
[1757420003772,1.92623212,218.12,218.08,0.03016065]
[1757420004477,7.07,218.11,218.08,0.03016065]
[1757420005673,1.92623212,218.12,218.08,0.03016065]
[1757420005875,7.07,218.11,218.08,0.03016065]
[1757420006578,1.92623212,218.12,218.08,0.03016065]
[1757420007278,7.07,218.11,218.08,0.03016065]
[1757420007680,1.92623212,218.12,218.08,0.03016065]
[1757420007870,7.07,218.11,218.08,0.03016065]
[1757420008276,1.92623212,218.12,218.08,0.03016065]
[1757420008581,7.07,218.11,218.08,7.37016065]
[1757420008780,7.07,218.12,218.08,0.03016065]
[1757420009272,1.92623212,218.13,218.08,0.03016065]
[1757420009979,34.6,218.15,218.08,0.03016065]
[1757420010171,1.92623212,218.13,218.08,0.03016065]
[1757420010376,7.07,218.14,218.08,0.03016065]